fUST/lending_fUST_20251127
["ID","MTS","AMOUNT","RATE_DAILY","PERIOD"]
[394967944,1764223957693,-500.0,0.00019,7]
[394967945,1764223957703,-500.0,0.00019,7]
[394967946,1764223957713,-500.0,0.00019,7]
[394967947,1764223957723,-500.0,0.00019,7]
[394967948,1764223957733,-500.0,0.00019,7]
[394967949,1764223957742,-500.0,0.00019,7]
[394967950,1764223957752,-225.57,0.00019,7]
[394967951,1764223957762,-500.0,0.00019,7]
[394967952,1764223957771,-378.83,0.00019,7]
[394967953,1764223957780,-2000.0,0.00019005,2]
[394967954,1764223957789,-270.331737,0.0001903,2]
[394967955,1764223957798,-500.0,0.00019086,2]
[394967956,1764223957807,-150.0,0.00019178,2]
[394967957,1764223957817,-300.0,0.00019178,2]
[394967958,1764223957825,-450.163385,0.00019178,2]
[394967959,1764223957835,-1160.0,0.00019178,2]
[394967960,1764223957844,-151.02901592,0.00019178,2]
[394967961,1764223957853,-2569.705,0.00019178,2]
[394967962,1764223957862,-500.0,0.00019178,2]
[394967963,1764223957875,-447.46706692,0.00019178,2]
[394967964,1764223957884,-3104.73275752,0.00019205,5]
[394967965,1764223957893,-500.0,0.00019216,2]
[394967966,1764223957902,-800.0,0.00019228,2]
[394967967,1764223957912,-436.66361461,0.00019286,2]
[394967968,1764223957925,-800.0,0.00019353,2]
[394967969,1764223957935,-800.0,0.00019365,2]
[394967970,1764223957945,-800.0,0.00019372,2]
[394967971,1764223957956,-600.0,0.000194,2]
[394967972,1764223957966,-600.0,0.000194,2]
[394967973,1764223957976,-600.0,0.000194,2]
[394967974,1764223957986,-909.10411048,0.00019416,2]
[394967975,1764223957997,-500.0,0.00019452,2]
[394967976,1764223958006,-263.86255848,0.00019452,2]
[394967977,1764223958016,-4500.0,0.00019456,2]
[394967978,1764223958026,-501.20557329,0.00019456,2]
[394967979,1764223958035,-500.0,0.0001949,2]
[394967980,1764223958045,-5500.0,0.00019531,2]
[394967981,1764223958054,-3295.63228826,0.00019531,2]
[394967982,1764223958064,-472.67443586,0.00019544,2]
[394967983,1764223958074,-800.0,0.00019581,2]
[394967984,1764223958083,-747.21717892,0.00019615,16]
[394967985,1764223958093,-251.23,0.0001962,2]
[394967986,1764223958102,-800.0,0.0001963,2]
[394967987,1764223958112,-302.8183302,0.00019632,2]
[394967988,1764223958121,-562.48,0.00019726,2]
[394967989,1764223958131,-1260.0,0.00019726,2]
[394967990,1764223958141,-500.0,0.00019726,2]
[394967991,1764223958150,-800.0,0.00019774,2]
[394967992,1764223958159,-1000.0,0.00019801,10]
[394967993,1764223958169,-791.0,0.00019801,10]
[394967994,1764223958179,-302.8183302,0.00019829,2]
[394967995,1764223958189,-500.0,0.00019865,2]
[394967996,1764223958199,-800.0,0.00019901,2]
[394967997,1764223958208,-500.0,0.00019939,2]
[394967998,1764223958217,-333.0,0.00019984,2]
[394967999,1764223958227,-333.0,0.00019984,2]
[394968000,1764223958236,-333.0,0.00019984,2]
[394968001,1764223958245,-333.0,0.00019984,2]
[394968002,1764223958254,-333.0,0.00019984,2]
[394968003,1764223958266,-333.0,0.00019984,2]
[394968004,1764223958276,-333.0,0.00019984,2]
[394968005,1764223958286,-333.0,0.00019984,2]
[394968006,1764223958295,-333.0,0.00019984,2]
[394968007,1764223958304,-333.0,0.00019984,2]
[394968008,1764223958315,-333.0,0.00019984,2]
[394968009,1764223958324,-333.0,0.00019984,2]
[394968010,1764223958334,-500.0,0.0002,2]
[394968011,1764223958345,-2522.0,0.0002,2]
[394968012,1764223958354,-369.75524131,0.0002,2]
[394968013,1764223958364,-222.47029003,0.0002,2]
[394968014,1764223958374,-201.691604,0.0002,2]
[394968015,1764223958384,-501.83046817,0.0002,2]
[394968016,1764223958395,-3128.47856318,0.0002,2]
[394968017,1764223958406,-5000.0,0.0002,2]
[394968018,1764223958416,-150.0,0.0002,2]
[394968019,1764223958425,-1200.0,0.0002,5]
[394968020,1764223958435,-837.0,0.0002,2]
[394968021,1764223958444,-8204.0,0.0002,2]
[394968022,1764223958453,-11681.72763686,0.0002,2]
[394968023,1764223958463,-14627.8654509,0.0002,2]
[394968024,1764223958472,-3003.58829798,0.0002,20]
[394968025,1764223958481,-23000.0,0.0002,2]
[394968026,1764223958491,-20473.504462,0.0002,2]
[394968027,1764223958500,-204.34034633,0.0002,2]
[394968028,1764223958510,-192.85,0.0002,3]
[394968029,1764223958519,-150.0,0.0002,2]
[394968030,1764223958528,-14751.20473845,0.0002,2]
[394968031,1764223958538,-151.0,0.0002,2]
[394968032,1764223958547,-151.0,0.0002,2]
[394968033,1764223958557,-151.0,0.0002,2]
[394968034,1764223958567,-151.0,0.0002,2]
[394968035,1764223958576,-151.0,0.0002,2]
[394968036,1764223958585,-151.0,0.0002,2]
[394968037,1764223958595,-151.0,0.0002,2]
[394968038,1764223958604,-151.0,0.0002,2]
[394968039,1764223958614,-151.0,0.0002,2]
[394968040,1764223958623,-299.85423426,0.0002,2]
[394968041,1764223958633,-302.62176441,0.0002,2]
[394968042,1764223958642,-150.0,0.0002,2]
[394968043,1764223958651,-770.0,0.0002,2]
[394968044,1764223958660,-1518.94222587,0.0002,2]
[394968045,1764223958670,-1000.0,0.0002,2]
[394968046,1764223958679,-5000.0,0.00020004,2]
[394968047,1764223958689,-454.2274953,0.00020025,4]
[394968048,1764223958698,-6000.0,0.00020079,2]
[394968049,1764223958707,-500.0,0.00020085,2]
[394968050,1764223958716,-194.68962516,0.0002013,2]
[394968051,1764223958725,-800.0,0.00020148,2]
[394968052,1764223958735,-330.0,0.00020169,2]
[394968053,1764223958745,-1500.0,0.00020187,2]
[394968054,1764223958754,-454.2274953,0.00020221,4]
[394968055,1764223958763,-9427.03861719,0.00020237,2]
[394968056,1764223958772,-1360.0,0.00020274,2]
[394968057,1764223958782,-500.0,0.00020279,2]
[394968058,1764223958792,-500.0,0.00020366,2]
[394968059,1764223958801,-454.2274953,0.00020418,4]
[394968060,1764223958811,-500.0,0.00020455,2]
[394968061,1764223958821,-500.0,0.00020455,2]
[394968062,1764223958830,-500.0,0.0002049,2]
[394968063,1764223958840,-3982.703285,0.00020548,2]
[394968064,1764223958849,-160.967357,0.00020548,7]
[394968065,1764223958859,-160.967357,0.00020548,7]
[394968066,1764223958877,-160.967357,0.00020548,7]
[394968067,1764223958891,-160.967357,0.00020548,7]
[394968068,1764223958900,-160.967357,0.00020548,7]
[394968069,1764223958910,-160.967357,0.00020548,7]
[394968070,1764223958920,-160.967357,0.00020548,7]
[394968071,1764223958929,-160.967357,0.00020548,7]
[394968072,1764223958940,-160.967357,0.00020548,7]
[394968073,1764223958949,-160.967357,0.00020548,7]
[394968074,1764223958959,-160.967357,0.00020548,7]
[394968075,1764223958968,-160.967357,0.00020548,7]
[394968076,1764223958978,-160.967357,0.00020548,7]
[394968077,1764223958988,-160.967357,0.00020548,7]
[394968078,1764223958998,-160.967357,0.00020548,7]
[394968079,1764223959007,-160.967357,0.00020548,7]
[394968080,1764223959016,-160.967357,0.00020548,7]
[394968081,1764223959026,-160.967357,0.00020548,7]
[394968082,1764223959036,-160.967357,0.00020548,7]
[394968083,1764223959046,-160.967351,0.00020548,7]
[394968084,1764223959056,-351.73130144,0.00020548,2]
[394968085,1764223959066,-806.19259935,0.0002055,2]
[394968086,1764223959075,-1779.40187607,0.00020552,2]
[394968087,1764223959085,-500.0,0.00020561,2]
[394968088,1764223959095,-800.0,0.00020574,2]
[394968089,1764223959104,-1382.53265875,0.0002061,2]
[394968090,1764223959114,-558.04441497,0.00020614,4]
[394968091,1764223959123,-800.0,0.0002062,2]
[394968092,1764223959133,-1627.52461738,0.00020627,2]
[394968093,1764223959143,-800.0,0.00020693,2]
[394968094,1764223959153,-500.0,0.000207,2]
[394968095,1764223959163,-500.0,0.0002073,2]
[394968096,1764223959173,-747.21717892,0.00020771,17]
[394968097,1764223959183,-499.3,0.000208,2]
[394968098,1764223959192,-500.0,0.00020807,2]
[394968099,1764223959202,-562.48,0.00020821,2]
[394968100,1764223959211,-1460.0,0.00020822,2]
[394968101,1764223959220,-800.0,0.0002084,2]
[394968102,1764223959230,-255.08758392,0.000209,2]
[394968103,1764223959239,-12543.31402294,0.00020948,2]
[394968104,1764223959249,-683.91144293,0.00020995,2]
[394968105,1764223959258,-4293.75902334,0.00021,5]
[394968106,1764223959273,-275.88462671,0.00021,2]
[394968107,1764223959283,-50000.0,0.00021,2]
[394968108,1764223959292,-240.0,0.00021,2]
[394968109,1764223959301,-150.0,0.00021,2]
[394968110,1764223959313,-500.0,0.00021079,2]
[394968111,1764223959323,-500.0,0.00021097,2]
[394968112,1764223959332,-800.0,0.00021139,2]
[394968113,1764223959342,-800.0,0.00021193,2]
[394968114,1764223959351,-265.56714226,0.00021368,2]
[394968115,1764223959361,-195.61589506,0.00021369,2]
[394968116,1764223959370,-342.32781634,0.00021369,2]
[394968117,1764223959379,-174.87980812,0.00021369,2]
[394968118,1764223959389,-154.98143481,0.00021369,2]
[394968119,1764223959398,-1560.0,0.0002137,2]
[394968120,1764223959407,-500.0,0.00021394,2]
[394968121,1764223959417,-194.46571519,0.00021437,2]
[394968122,1764223959426,-800.0,0.0002146,2]
[394968123,1764223959435,-407.0,0.000215,2]
[394968124,1764223959444,-500.0,0.000215,30]
[394968125,1764223959453,-500.0,0.000215,30]
[394968126,1764223959462,-500.0,0.000215,30]
[394968127,1764223959472,-500.0,0.000215,30]
[394968128,1764223959481,-500.0,0.000215,2]
[394968129,1764223959490,-500.0,0.000215,10]
[394968130,1764223959499,-500.0,0.000215,30]
[394968131,1764223959508,-300.76,0.000215,15]
[394968132,1764223959517,-12797.01595338,0.000215,2]
[394968133,1764223959527,-275.59,0.000215,7]
[394968134,1764223959536,-500.0,0.000215,2]
[394968135,1764223959545,-500.0,0.000215,2]
[394968136,1764223959554,-500.0,0.000215,15]
[394968137,1764223959563,-500.0,0.000215,10]
[394968138,1764223959572,-155.22,0.000215,10]
[394968139,1764223959581,-500.0,0.00021604,2]
[394968140,1764223959591,-265.56714226,0.00021625,17]
[394968141,1764223959601,-342.32781634,0.00021626,17]
[394968142,1764223959610,-154.98143481,0.00021626,17]
[394968143,1764223959619,-174.87980812,0.00021729,23]
[394968144,1764223959629,-934.54969337,0.00021773,2]
[394968145,1764223959638,-1000.0,0.00021781,10]
[394968146,1764223959647,-1000.0,0.00021781,10]
[394968147,1764223959656,-265.56714226,0.00021882,32]
[394968148,1764223959665,-342.32781634,0.00021883,32]
[394968149,1764223959674,-154.98143481,0.00021883,32]
[394968150,1764223959683,-562.48,0.00021917,2]
[394968151,1764223959692,-315.36118,0.00021918,2]
[394968152,1764223959701,-150.0,0.00021918,2]
[394968153,1764223959711,-151.0,0.00021918,2]
[394968154,1764223959722,-151.0,0.00021918,2]
[394968155,1764223959731,-151.0,0.00021918,2]
[394968156,1764223959740,-151.0,0.00021918,2]
[394968157,1764223959750,-157.61641353,0.00021918,2]
[394968158,1764223959759,-151.0,0.00021918,2]
[394968159,1764223959769,-151.0,0.00021918,2]
[394968160,1764223959778,-151.0,0.00021918,2]
[394968161,1764223959787,-151.0,0.00021918,2]
[394968162,1764223959797,-151.0,0.00021918,2]
[394968163,1764223959806,-151.0,0.00021918,2]
[394968164,1764223959815,-151.0,0.00021918,2]
[394968165,1764223959824,-151.0,0.00021918,2]
[394968166,1764223959833,-151.0,0.00021918,2]
[394968167,1764223959843,-151.0,0.00021918,2]
[394968168,1764223959852,-151.0,0.00021918,2]
[394968169,1764223959861,-151.0,0.00021918,2]
[394968170,1764223959871,-151.0,0.00021918,2]
[394968171,1764223959880,-151.0,0.00021918,2]
[394968172,1764223959889,-151.0,0.00021918,2]
[394968173,1764223959899,-151.0,0.00021918,2]
[394968174,1764223959908,-151.0,0.00021918,2]
[394968175,1764223959917,-151.0,0.00021918,2]
[394968176,1764223959927,-151.0,0.00021918,2]
[394968177,1764223959936,-151.0,0.00021918,2]
[394968178,1764223959946,-151.0,0.00021918,2]
[394968179,1764223959955,-151.0,0.00021918,2]
[394968180,1764223959964,-151.0,0.00021918,2]
[394968181,1764223959974,-151.0,0.00021918,2]
[394968182,1764223959983,-151.0,0.00021918,2]
[394968183,1764223959993,-151.0,0.00021918,2]
[394968184,1764223960003,-151.0,0.00021918,2]
[394968185,1764223960013,-151.0,0.00021918,2]
[394968186,1764223960024,-151.0,0.00021918,2]
[394968187,1764223960033,-151.0,0.00021918,2]
[394968188,1764223960043,-151.0,0.00021918,2]
[394968189,1764223960053,-151.0,0.00021918,2]
[394968190,1764223960062,-151.0,0.00021918,2]
[394968191,1764223960071,-151.0,0.00021918,2]
[394968192,1764223960081,-151.0,0.00021918,2]
[394968193,1764223960090,-151.0,0.00021918,2]
[394968194,1764223960100,-151.0,0.00021918,2]
[394968195,1764223960111,-151.0,0.00021918,2]
[394968196,1764223960121,-151.0,0.00021918,2]
[394968197,1764223960131,-151.0,0.00021918,2]
[394968198,1764223960140,-151.0,0.00021918,2]
[394968199,1764223960149,-151.0,0.00021918,2]
[394968200,1764223960159,-151.0,0.00021918,2]
[394968201,1764223960168,-151.0,0.00021918,2]
[394968202,1764223960177,-151.0,0.00021918,2]
[394968203,1764223960187,-151.0,0.00021918,2]
[394968204,1764223960197,-151.0,0.00021918,2]
[394968205,1764223960206,-182.33091284,0.00021918,2]
[394968206,1764223960216,-151.0,0.00021918,2]
[394968207,1764223960225,-151.0,0.00021918,2]
[394968208,1764223960235,-151.0,0.00021918,2]
[394968209,1764223960244,-151.0,0.00021918,2]
[394968210,1764223960254,-151.0,0.00021918,2]
[394968211,1764223960266,-151.0,0.00021918,2]
[394968212,1764223960277,-151.0,0.00021918,2]
[394968213,1764223960288,-151.0,0.00021918,2]
[394968214,1764223960297,-151.0,0.00021918,2]
[394968215,1764223960308,-151.0,0.00021918,2]
[394968216,1764223960318,-151.0,0.00021918,2]
[394968217,1764223960327,-151.0,0.00021918,2]
[394968218,1764223960337,-151.0,0.00021918,2]
[394968219,1764223960346,-151.0,0.00021918,2]
[394968220,1764223960356,-151.0,0.00021918,2]
[394968221,1764223960365,-151.0,0.00021918,2]
[394968222,1764223960374,-151.0,0.00021918,2]
[394968223,1764223960383,-151.0,0.00021918,2]
[394968224,1764223960393,-151.0,0.00021918,2]
[394968225,1764223960402,-151.0,0.00021918,2]
[394968226,1764223960411,-151.0,0.00021918,2]
[394968227,1764223960421,-1660.0,0.00021918,2]
[394968228,1764223960430,-747.21717892,0.00021927,19]
[394968229,1764223960439,-184.0,0.00021945,120]
[394968230,1764223960448,-418.95336485,0.00022,2]
[394968231,1764223960458,-678.37,0.00022,7]
[394968232,1764223960467,-1630.1,0.00022,14]
[394968233,1764223960476,-166.0,0.00022,2]
[394968234,1764223960486,-418.0,0.00022,2]
[394968235,1764223960495,-800.0,0.00022051,2]
[394968236,1764223960504,-800.0,0.00022083,2]
[394968237,1764223960513,-174.87980812,0.00022089,45]
[394968238,1764223960522,-265.56714226,0.0002214,48]
[394968239,1764223960532,-342.32781634,0.00022141,48]
[394968240,1764223960542,-154.98143481,0.00022141,48]
[394968241,1764223960553,-418.0,0.00022192,7]
[394968242,1764223960562,-169.0,0.00022217,120]
[394968243,1764223960573,-500.0,0.00022256,2]
[394968244,1764223960583,-195.61589506,0.00022269,56]
[394968245,1764223960593,-500.0,0.00022277,2]
[394968246,1764223960603,-159.671883,0.0002232,4]
[394968247,1764223960612,-194.46571519,0.0002234,56]
[394968248,1764223960622,-265.56714226,0.00022397,63]
[394968249,1764223960631,-342.32781634,0.00022398,63]
[394968250,1764223960640,-154.98143481,0.00022398,63]
[394968251,1764223960650,-800.0,0.00022407,2]
[394968252,1764223960659,-174.87980812,0.00022449,66]
[394968253,1764223960668,-418.0,0.00022466,7]
[394968254,1764223960678,-300.0,0.00022466,2]
[394968255,1764223960687,-1760.0,0.00022466,2]
[394968256,1764223960697,-200.33534498,0.00022493,30]
[394968257,1764223960707,-153.6413186,0.00022494,30]
[394968258,1764223960717,-1028.21194486,0.000225,2]
[394968259,1764223960727,-285.89,0.00022575,60]
[394968260,1764223960736,-300.12,0.00022575,60]
[394968261,1764223960745,-265.56714226,0.00022654,79]
[394968262,1764223960755,-342.32781634,0.00022655,79]
[394968263,1764223960764,-154.98143481,0.00022655,79]
[394968264,1764223960773,-500.0,0.00022679,2]
[394968265,1764223960782,-418.0,0.0002274,7]
[394968266,1764223960792,-1630.1,0.000228,14]
[394968267,1764223960802,-174.87980812,0.00022809,88]
[394968268,1764223960811,-265.56714226,0.00022911,94]
[394968269,1764223960821,-342.32781634,0.00022912,94]
[394968270,1764223960830,-154.98143481,0.00022912,94]
[394968271,1764223960839,-738.38226582,0.00022995,2]
[394968272,1764223960849,-155.0,0.00023,2]
[394968273,1764223960859,-562.48,0.00023013,2]
[394968274,1764223960869,-418.0,0.00023014,7]
[394968275,1764223960879,-500.0,0.00023014,2]
[394968276,1764223960890,-450.0,0.00023014,2]
[394968277,1764223960899,-418.0,0.00023014,7]
[394968278,1764223960909,-1860.0,0.00023014,2]
[394968279,1764223960918,-184.0,0.00023042,120]
[394968280,1764223960928,-270.331737,0.00023065,2]
[394968281,1764223961020,-747.21717892,0.00023083,20]
[394968282,1764223961032,-678.37,0.000231,7]
[394968283,1764223961041,-159.671883,0.0002313,60]
[394968284,1764223961051,-500.0,0.0002314,2]
[394968285,1764223961061,-500.0,0.0002315,2]
[394968286,1764223961070,-265.56714226,0.00023168,110]
[394968287,1764223961080,-342.32781634,0.00023169,110]
[394968288,1764223961090,-154.98143481,0.00023169,110]
[394968289,1764223961099,-500.0,0.00023186,2]
[394968290,1764223961108,-500.0,0.00023205,2]
[394968291,1764223961118,-194.46571519,0.00023242,110]
[394968292,1764223961127,-169.0,0.00023328,120]
[394968293,1764223961136,-12543.31402294,0.00023388,2]
[394968294,1764223961146,-500.0,0.00023476,2]
[394968295,1764223961156,-500.0,0.00023528,2]
[394968296,1764223961166,-600.0,0.00023562,2]
[394968297,1764223961175,-1960.0,0.00023562,2]
[394968298,1764223961185,-1009512.32861286,0.000236,2]
[394968299,1764223961194,-1630.1,0.000236,14]
[394968300,1764223961204,-553.43643463,0.00023622,2]
[394968301,1764223961213,-285.89,0.0002365,120]
[394968302,1764223961224,-300.12,0.0002365,120]
[394968303,1764223961236,-3704.35788525,0.000237,14]
[394968304,1764223961246,-159.671883,0.0002376,20]
[394968305,1764223961257,-500.0,0.00023778,2]
[394968306,1764223961270,-500.0,0.0002392,2]
[394968307,1764223961280,-500.0,0.00023924,2]
[394968308,1764223961289,-1000.0,0.00023959,10]
[394968309,1764223961298,-1000.0,0.00023959,10]
[394968310,1764223961311,-579.0,0.00023959,10]
[394968311,1764223961321,-1728.7958923,0.00024,2]
[394968312,1764223961330,-463.71371901,0.00024,2]
[394968313,1764223961340,-183.82,0.00024,14]
[394968314,1764223961352,-562.48,0.00024109,2]
[394968315,1764223961361,-750.0,0.0002411,2]
[394968316,1764223961371,-2060.0,0.0002411,2]
[394968317,1764223961380,-509801.81283898,0.00024142,2]
[394968318,1764223961390,-800.0,0.00024154,2]
[394968319,1764223961399,-432.0,0.00024164,7]
[394968320,1764223961408,-418.0,0.00024164,7]
[394968321,1764223961418,-678.37,0.000242,7]
[394968322,1764223961427,-747.21717892,0.00024239,21]
[394968323,1764223961436,-1630.1,0.000244,14]
[394968324,1764223961446,-436.66361461,0.0002452,2]
[394968325,1764223961455,-800.0,0.00024556,2]
[394968326,1764223961464,-512.25034921,0.0002465,2]
[394968327,1764223961474,-156286.53332541,0.0002465,2]
[394968328,1764223961483,-900.0,0.00024658,2]
[394968329,1764223961493,-150.0,0.00024658,2]
[394968330,1764223961503,-380.0,0.00024658,2]
[394968331,1764223961512,-200.0,0.00024658,2]
[394968332,1764223961521,-153.0,0.00024658,2]
[394968333,1764223961531,-153.0,0.00024658,2]
[394968334,1764223961540,-153.0,0.00024658,2]
[394968335,1764223961549,-153.0,0.00024658,2]
[394968336,1764223961559,-207.0,0.00024658,2]
[394968337,1764223961568,-207.0,0.00024658,2]
[394968338,1764223961577,-207.0,0.00024658,2]
[394968339,1764223961587,-153.0,0.00024658,2]
[394968340,1764223961596,-153.0,0.00024658,2]
[394968341,1764223961605,-153.0,0.00024658,2]
[394968342,1764223961614,-153.0,0.00024658,2]
[394968343,1764223961624,-153.0,0.00024658,2]
[394968344,1764223961633,-153.0,0.00024658,2]
[394968345,1764223961642,-174.0,0.00024658,2]
[394968346,1764223961651,-174.0,0.00024658,2]
[394968347,1764223961660,-153.0,0.00024658,2]
[394968348,1764223961670,-153.0,0.00024658,2]
[394968349,1764223961680,-153.0,0.00024658,2]
[394968350,1764223961690,-153.0,0.00024658,2]
[394968351,1764223961699,-153.0,0.00024658,2]
[394968352,1764223961709,-153.0,0.00024658,2]
[394968353,1764223961718,-2160.0,0.00024658,2]
[394968354,1764223961728,-500.0,0.00024658,2]
[394968355,1764223961737,-9427.03861719,0.00024684,2]
[394968356,1764223961746,-800.0,0.00024689,2]
[394968357,1764223961755,-1419.08694112,0.00024732,2]
[394968358,1764223961765,-16773.15008917,0.00024774,2]
[394968359,1764223961774,-500.0,0.00024795,2]
[394968360,1764223961784,-1755.54927672,0.000248,4]
[394968361,1764223961795,-270.331737,0.000248,4]
[394968362,1764223961804,-646076.64196,0.000249,2]
[394968363,1764223961815,-500.0,0.00024925,2]
[394968364,1764223961825,-500.0,0.00024932,2]
[394968365,1764223961834,-743.64001329,0.00024966,2]
[394968366,1764223961844,-519.40170396,0.00024981,2]
[394968367,1764223961855,-792.85308871,0.00024995,2]
[394968368,1764223961864,-194.06947729,0.00025,2]
[394968369,1764223961874,-88759.57376045,0.00025,15]
[394968370,1764223961884,-10364.0,0.00025,2]
[394968371,1764223961894,-200.0,0.00025,120]
[394968372,1764223961904,-207.209736,0.00025,2]
[394968373,1764223961914,-500.0,0.00025069,2]
[394968374,1764223961923,-418.0,0.00025131,7]
[394968375,1764223961932,-562.48,0.00025205,2]
[394968376,1764223961941,-2260.0,0.00025205,2]
[394968377,1764223961951,-250.0,0.00025205,2]
[394968378,1764223961960,-1165.15907141,0.00025205,2]
[394968379,1764223961969,-500.0,0.00025206,2]
[394968380,1764223961979,-678.37,0.000253,7]
[394968381,1764223961988,-418.0,0.00025315,7]
[394968382,1764223961997,-315.36118,0.00025342,2]
[394968383,1764223962007,-270.331737,0.00025364,4]
[394968384,1764223962016,-747.21717892,0.00025394,23]
[394968385,1764223962025,-1630.1,0.000254,14]
[394968386,1764223962345,-270.331737,0.000257,60]
[394968387,1764223962355,-2360.0,0.00025753,2]
[394968388,1764223962365,-350.0,0.00025753,2]
[394968389,1764223962375,-12543.31402294,0.00025828,2]
[394968390,1764223962384,-270.331737,0.00025929,4]
[394968391,1764223962393,-19900.0,0.00026,2]
[394968392,1764223962402,-418.0,0.00026098,7]
[394968393,1764223962413,-317.18481163,0.00026274,14]
[394968394,1764223962422,-562.48,0.00026301,2]
[394968395,1764223962431,-2460.0,0.00026301,2]
[394968396,1764223962442,-450.0,0.00026301,2]
[394968397,1764223962451,-1000.0,0.00026355,30]
[394968398,1764223962461,-1000.0,0.00026355,30]
[394968399,1764223962470,-1000.0,0.00026355,30]
[394968400,1764223962479,-270.331737,0.000264,20]
[394968401,1764223962489,-179.87408814,0.00026449,2]
[394968402,1764223962498,-418.0,0.00026466,7]
[394968403,1764223962507,-270.331737,0.00026493,4]
[394968404,1764223962517,-25000.0,0.000265,5]
[394968405,1764223962526,-1630.1,0.000265,14]
[394968406,1764223962535,-747.21717892,0.0002655,24]
[394968407,1764223962544,-1500.0,0.00026676,2]
[394968408,1764223962554,-678.37,0.000267,7]
[394968409,1764223962563,-2560.0,0.00026849,2]
[394968410,1764223962572,-460.23893134,0.00026849,2]
[394968411,1764223962581,-847.3239116,0.00026995,2]
[394968412,1764223962591,-200.0,0.00027,120]
[394968413,1764223962601,-270.331737,0.00027058,4]
[394968414,1764223962610,-418.0,0.00027064,7]
[394968415,1764223962619,-270.331737,0.00027086,60]
[394968416,1764223962629,-270.331737,0.000271,2]
[394968417,1764223962638,-1014.42453174,0.00027397,2]
[394968418,1764223962647,-500.0,0.00027397,4]
[394968419,1764223962656,-1048.9122439,0.00027397,4]
[394968420,1764223962666,-562.48,0.00027397,2]
[394968421,1764223962675,-500.0,0.00027397,2]
[394968422,1764223962684,-2660.0,0.00027397,2]
[394968423,1764223962693,-508.5543995,0.00027397,120]
[394968424,1764223962703,-153.646702,0.00027397,7]
[394968425,1764223962712,-152.453684,0.00027397,7]
[394968426,1764223962721,-151.0,0.00027397,7]
[394968427,1764223962730,-151.0,0.00027397,7]
[394968428,1764223962740,-151.811112,0.00027397,7]
[394968429,1764223962749,-151.0,0.00027397,7]
[394968430,1764223962758,-164.880563,0.00027397,7]
[394968431,1764223962767,-161.224084,0.00027397,7]
[394968432,1764223962776,-151.0,0.00027397,7]
[394968433,1764223962786,-232.857365,0.00027397,7]
[394968434,1764223962795,-151.0,0.00027397,7]
[394968435,1764223962804,-151.0,0.00027397,7]
[394968436,1764223962814,-151.0,0.00027397,7]
[394968437,1764223962823,-151.0,0.00027397,7]
[394968438,1764223962832,-151.0,0.00027397,7]
[394968439,1764223962841,-151.0,0.00027397,7]
[394968440,1764223962850,-151.0,0.00027397,7]
[394968441,1764223962859,-151.0,0.00027397,7]
[394968442,1764223962869,-151.0,0.00027397,7]
[394968443,1764223962879,-250.06148,0.00027397,7]